lending/lending_fUSD_20251124
["ID","MTS","AMOUNT","RATE_DAILY","PERIOD"]
[394806699,1763970646057,-642.97345703,0.00039421,5]
[394806700,1763970646067,-1000.0,0.00039421,5]
[394806701,1763970646077,-1000.0,0.00039421,2]
[394806702,1763970646087,-510.83585397,0.00039421,5]
[394806703,1763970646097,-500.76130664,0.00039421,5]
[394806704,1763970646106,-1000.0,0.00039421,5]
[394806705,1763970646116,-1000.0,0.00039421,5]
[394806706,1763970646125,-500.0,0.00039421,3]
[394806707,1763970646134,-150.0,0.00039428,7]
[394806708,1763970646144,-150.0,0.00039428,7]
[394806709,1763970646153,-150.0,0.00039428,7]
[394806710,1763970646162,-500.0,0.00039452,120]
[394806711,1763970646171,-10000.0,0.00039455,2]
[394806712,1763970646180,-3238.10143597,0.00039461,2]
[394806713,1763970646189,-150.0,0.00039498,7]
[394806714,1763970646198,-1500.0,0.000395,7]
[394806715,1763970646206,-5797.0,0.000395,30]
[394806716,1763970646216,-157.28534256,0.00039501,2]
[394806717,1763970646224,-1000.0,0.00039521,5]
[394806718,1763970646235,-330.84454354,0.00039521,5]
[394806719,1763970646244,-612.65664579,0.00039554,8]
[394806720,1763970646254,-1651.5,0.00039554,8]
[394806721,1763970646263,-517.5,0.00039554,8]
[394806722,1763970646273,-500.0,0.00039554,8]
[394806723,1763970646283,-500.0,0.00039554,8]
[394806724,1763970646294,-186.17470191,0.00039554,8]
[394806725,1763970646306,-500.0,0.00039554,8]
[394806726,1763970646314,-561.96,0.00039554,2]
[394806727,1763970646323,-500.0,0.00039554,8]
[394806728,1763970646331,-500.0,0.00039554,8]
[394806729,1763970646342,-500.0,0.00039554,8]
[394806730,1763970646351,-500.0,0.00039554,8]
[394806731,1763970646359,-500.0,0.00039555,8]
[394806732,1763970646369,-723.91,0.00039555,8]
[394806733,1763970646379,-416.14,0.00039555,8]
[394806734,1763970646388,-500.0,0.00039555,8]
[394806735,1763970646397,-1000.0,0.00039555,87]
[394806736,1763970646406,-156.53,0.00039555,8]
[394806737,1763970646415,-500.0,0.00039555,8]
[394806738,1763970646424,-500.0,0.00039555,8]
[394806739,1763970646433,-500.0,0.00039555,8]
[394806740,1763970646452,-429.0,0.00039555,8]
[394806741,1763970646462,-445.39,0.00039555,8]
[394806742,1763970646471,-500.0,0.00039555,8]
[394806743,1763970646481,-500.0,0.00039555,8]
[394806744,1763970646490,-500.0,0.00039555,8]
[394806745,1763970646499,-1000.0,0.00039555,8]
[394806746,1763970646509,-535.13289303,0.00039555,8]
[394806747,1763970646519,-500.0,0.00039555,8]
[394806748,1763970646531,-500.0,0.00039555,8]
[394806749,1763970646540,-150.24,0.00039555,8]
[394806750,1763970646549,-500.0,0.00039555,8]
[394806751,1763970646559,-502.09509925,0.00039555,8]
[394806752,1763970646568,-182.11,0.00039555,8]
[394806753,1763970646579,-500.0,0.00039555,8]
[394806754,1763970646589,-500.0,0.00039555,8]
[394806755,1763970646598,-191.49,0.00039555,8]
[394806756,1763970646609,-500.0,0.00039555,8]
[394806757,1763970646619,-464.0063164,0.00039555,8]
[394806758,1763970646629,-500.0,0.00039555,8]
[394806759,1763970646638,-500.0,0.00039555,8]
[394806760,1763970646648,-500.0,0.00039555,8]
[394806761,1763970646659,-484.72866504,0.00039555,8]
[394806762,1763970646668,-500.0,0.00039555,8]
[394806763,1763970646678,-500.0,0.00039555,8]
[394806764,1763970646688,-500.0,0.00039555,8]
[394806765,1763970646698,-500.0,0.00039555,8]
[394806766,1763970646707,-500.0,0.00039555,8]
[394806767,1763970646717,-340.3,0.00039555,8]
[394806768,1763970646727,-191.58,0.00039555,8]
[394806769,1763970646738,-500.0,0.00039555,8]
[394806770,1763970646748,-798.54,0.00039555,8]
[394806771,1763970646757,-500.0,0.00039555,8]
[394806772,1763970646767,-500.0,0.00039555,8]
[394806773,1763970646779,-500.0,0.00039555,8]
[394806774,1763970646788,-1292.41,0.00039555,8]
[394806775,1763970646798,-500.0,0.00039555,8]
[394806776,1763970646808,-667.79,0.00039555,8]
[394806777,1763970646817,-161.38624603,0.00039555,8]
[394806778,1763970646827,-421.22,0.00039555,8]
[394806779,1763970646837,-500.0,0.00039555,8]
[394806780,1763970646847,-500.0,0.00039555,8]
[394806781,1763970646857,-417.03227325,0.00039555,8]
[394806782,1763970646867,-500.0,0.00039555,2]
[394806783,1763970646876,-500.0,0.00039555,8]
[394806784,1763970646887,-500.0,0.00039555,8]
[394806785,1763970646897,-347.28714577,0.00039555,8]
[394806786,1763970646907,-500.0,0.00039555,8]
[394806787,1763970646917,-969.1,0.00039555,8]
[394806788,1763970646926,-500.0,0.00039555,8]
[394806789,1763970646935,-593.17,0.00039555,8]
[394806790,1763970646944,-500.0,0.00039555,8]
[394806791,1763970646954,-500.0,0.00039555,8]
[394806792,1763970646963,-500.0,0.00039555,8]
[394806793,1763970646972,-500.0,0.00039555,8]
[394806794,1763970646983,-500.0,0.00039555,8]
[394806795,1763970646992,-500.0,0.00039555,8]
[394806796,1763970647002,-500.0,0.00039555,8]
[394806797,1763970647012,-500.0,0.00039555,8]
[394806798,1763970647024,-232.4,0.00039555,8]
[394806799,1763970647034,-500.0,0.00039555,8]
[394806800,1763970647043,-500.0,0.00039555,8]
[394806801,1763970647055,-10392.586223,0.00039565,2]
[394806802,1763970647064,-1116.71130263,0.00039621,2]
[394806803,1763970647074,-1000.0,0.00039621,5]
[394806804,1763970647084,-500.96785255,0.00039621,5]
[394806805,1763970647093,-1000.0,0.00039621,5]
[394806806,1763970647103,-1000.0,0.00039621,5]
[394806807,1763970647113,-397.03087765,0.00039623,2]
[394806808,1763970647123,-698.03,0.00039628,30]
[394806809,1763970647133,-162.12,0.00039654,2]
[394806810,1763970647142,-473.3800582,0.00039657,2]
[394806811,1763970647152,-150.0,0.00039657,7]
[394806812,1763970647163,-164.19292156,0.00039761,15]
[394806813,1763970647172,-653.0,0.0003977,20]
[394806814,1763970647182,-3238.10143597,0.00039804,2]
[394806815,1763970647191,-382.2,0.00039808,2]
[394806816,1763970647200,-500.0,0.00039821,5]
[394806817,1763970647210,-1079.88417633,0.00039821,5]
[394806818,1763970647220,-1651.5,0.00039828,8]
[394806819,1763970647231,-517.5,0.00039828,8]
[394806820,1763970647240,-500.0,0.00039828,8]
[394806821,1763970647250,-500.0,0.00039828,8]
[394806822,1763970647260,-561.96,0.00039828,2]
[394806823,1763970647269,-500.0,0.00039828,8]
[394806824,1763970647281,-579.28123361,0.00039828,8]
[394806825,1763970647292,-500.0,0.00039828,8]
[394806826,1763970647306,-500.0,0.00039829,8]
[394806827,1763970647316,-723.91,0.00039829,8]
[394806828,1763970647325,-500.0,0.00039829,8]
[394806829,1763970647335,-500.0,0.00039829,8]
[394806830,1763970647346,-500.0,0.00039829,8]
[394806831,1763970647356,-512.23,0.00039829,8]
[394806832,1763970647366,-500.0,0.00039829,8]
[394806833,1763970647378,-500.0,0.00039829,8]
[394806834,1763970647388,-500.0,0.00039829,8]
[394806835,1763970647398,-1000.0,0.00039829,8]
[394806836,1763970647408,-152.94806323,0.00039829,8]
[394806837,1763970647418,-500.0,0.00039829,8]
[394806838,1763970647428,-500.0,0.00039829,8]
[394806839,1763970647437,-549.84990678,0.00039829,8]
[394806840,1763970647447,-546.92,0.00039829,8]
[394806841,1763970647457,-500.0,0.00039829,8]
[394806842,1763970647467,-245.03,0.00039829,8]
[394806843,1763970647477,-500.0,0.00039829,8]
[394806844,1763970647487,-500.0,0.00039829,8]
[394806845,1763970647496,-436.63595246,0.00039829,8]
[394806846,1763970647506,-500.0,0.00039829,8]
[394806847,1763970647515,-500.0,0.00039829,8]
[394806848,1763970647525,-798.54,0.00039829,8]
[394806849,1763970647534,-367.72,0.00039829,8]
[394806850,1763970647544,-500.0,0.00039829,8]
[394806851,1763970647554,-1292.41,0.00039829,8]
[394806852,1763970647564,-500.0,0.00039829,8]
[394806853,1763970647574,-667.79,0.00039829,8]
[394806854,1763970647583,-500.87830882,0.00039829,8]
[394806855,1763970647593,-500.0,0.00039829,2]
[394806856,1763970647602,-500.0,0.00039829,8]
[394806857,1763970647612,-390.95,0.00039829,8]
[394806858,1763970647622,-500.0,0.00039829,8]
[394806859,1763970647631,-969.1,0.00039829,8]
[394806860,1763970647641,-500.0,0.00039829,8]
[394806861,1763970647651,-500.0,0.00039829,8]
[394806862,1763970647660,-500.0,0.00039829,8]
[394806863,1763970647670,-500.0,0.00039829,8]
[394806864,1763970647680,-500.0,0.00039829,8]
[394806865,1763970647689,-210.85,0.00039829,8]
[394806866,1763970647698,-150.0,0.00039848,7]
[394806867,1763970647708,-150.0,0.00039848,7]
[394806868,1763970647718,-150.0,0.00039848,7]
[394806869,1763970647727,-150.0,0.00039848,7]
[394806870,1763970647737,-150.0,0.00039848,7]
[394806871,1763970647746,-150.0,0.00039848,7]
[394806872,1763970647756,-168.0,0.00039872,2]
[394806873,1763970647765,-10392.586223,0.00039894,15]
[394806874,1763970647775,-698.03,0.00039902,30]
[394806875,1763970647784,-1000.0,0.00039971,2]
[394806876,1763970647793,-1010.3864859,0.0004,30]
[394806877,1763970647803,-1042.39,0.00040002,120]
[394806878,1763970647813,-213.25357626,0.00040025,5]
[394806879,1763970647822,-150.0,0.00040039,7]
[394806880,1763970647831,-397.03087765,0.00040072,2]
[394806881,1763970647841,-473.3800582,0.00040099,28]
[394806882,1763970647850,-500.0,0.00040102,30]
[394806883,1763970647859,-500.0,0.00040102,30]
[394806884,1763970647868,-500.0,0.00040102,30]
[394806885,1763970647878,-1651.5,0.00040102,8]
[394806886,1763970647888,-517.5,0.00040102,8]
[394806887,1763970647897,-500.0,0.00040102,8]
[394806888,1763970647907,-500.0,0.00040102,8]
[394806889,1763970647916,-561.96,0.00040102,2]
[394806890,1763970647926,-500.0,0.00040102,8]
[394806891,1763970647936,-500.0,0.00040102,8]
[394806892,1763970647946,-500.0,0.00040103,8]
[394806893,1763970647955,-723.91,0.00040103,8]
[394806894,1763970647966,-360.75342089,0.00040103,8]
[394806895,1763970647975,-500.0,0.00040103,8]
[394806896,1763970647985,-500.0,0.00040103,8]
[394806897,1763970647995,-500.0,0.00040103,8]
[394806898,1763970648004,-500.0,0.00040103,8]
[394806899,1763970648014,-500.0,0.00040103,8]
[394806900,1763970648024,-438.79887636,0.00040103,8]
[394806901,1763970648033,-151.22,0.00040103,8]
[394806902,1763970648042,-500.0,0.00040103,8]
[394806903,1763970648052,-500.0,0.00040103,8]
[394806904,1763970648062,-500.0,0.00040103,8]
[394806905,1763970648072,-500.0,0.00040103,8]
[394806906,1763970648081,-275.34186218,0.00040103,8]
[394806907,1763970648091,-500.0,0.00040103,8]
[394806908,1763970648100,-798.54,0.00040103,8]
[394806909,1763970648110,-310.37347602,0.00040103,8]
[394806910,1763970648120,-1292.41,0.00040103,8]
[394806911,1763970648129,-500.0,0.00040103,8]
[394806912,1763970648139,-667.79,0.00040103,8]
[394806913,1763970648149,-500.0,0.00040103,2]
[394806914,1763970648159,-500.0,0.00040103,8]
[394806915,1763970648168,-327.31,0.00040103,8]
[394806916,1763970648178,-969.1,0.00040103,8]
[394806917,1763970648188,-500.0,0.00040103,8]
[394806918,1763970648198,-500.0,0.00040103,8]
[394806919,1763970648207,-158.94641058,0.00040103,8]
[394806920,1763970648217,-500.0,0.00040103,8]
[394806921,1763970648227,-221.84,0.00040103,8]
[394806922,1763970648236,-500.0,0.00040168,5]
[394806923,1763970648245,-500.0,0.00040168,5]
[394806924,1763970648254,-698.03646044,0.00040176,30]
[394806925,1763970648264,-653.0,0.0004018,20]
[394806926,1763970648274,-150.0,0.00040197,7]
[394806927,1763970648283,-231.22,0.0004021,14]
[394806928,1763970648293,-10392.586223,0.00040223,15]
[394806929,1763970648306,-150.0,0.00040267,7]
[394806930,1763970648316,-150.0,0.00040267,7]
[394806931,1763970648325,-150.0,0.00040267,7]
[394806932,1763970648335,-168.0,0.00040283,2]
[394806933,1763970648491,-168.0,0.00040295,2]
[394806934,1763970648502,-500.0,0.00040321,7]
[394806935,1763970648512,-500.0,0.00040321,7]
[394806936,1763970648523,-700.0,0.00040321,7]
[394806937,1763970648533,-168.0,0.00040326,2]
[394806938,1763970648543,-150.0,0.00040372,7]
[394806939,1763970648553,-500.0,0.00040376,30]
[394806940,1763970648563,-500.0,0.00040376,30]
[394806941,1763970648572,-1651.5,0.00040376,8]
[394806942,1763970648582,-517.5,0.00040376,8]
[394806943,1763970648592,-163.26,0.00040376,8]
[394806944,1763970648603,-500.0,0.00040376,8]
[394806945,1763970648613,-561.96,0.00040376,2]
[394806946,1763970648622,-500.0,0.00040376,8]
[394806947,1763970648632,-500.0,0.00040376,8]
[394806948,1763970648642,-500.0,0.00040377,8]
[394806949,1763970648651,-723.91,0.00040377,8]
[394806950,1763970648661,-352.44136947,0.00040377,8]
[394806951,1763970648670,-500.0,0.00040377,8]
[394806952,1763970648681,-500.0,0.00040377,8]
[394806953,1763970648690,-500.0,0.00040377,8]
[394806954,1763970648700,-386.61232474,0.00040377,8]
[394806955,1763970648709,-500.0,0.00040377,8]
[394806956,1763970648719,-500.0,0.00040377,8]
[394806957,1763970648728,-500.0,0.00040377,8]
[394806958,1763970648737,-500.0,0.00040377,8]
[394806959,1763970648747,-106.42182734,0.00040377,8]
[394806960,1763970648871,-293.33817266,0.00040377,8]
[394806961,1763970648881,-75.81158562,0.00040377,8]
[394806962,1763970648893,-264.98626188,0.00040377,8]
[394806963,1763970649029,-500.0,0.00038,20]
[394806964,1763970649039,-160.54996,0.00038907,2]
[394806965,1763970649050,-839.45004,0.00038907,2]
[394806966,1763970649060,-3238.10143597,0.00040148,15]
[394806967,1763970649070,-457.7421525,0.00040377,8]
[394806968,1763970649079,-554.42850974,0.00040377,8]
[394806969,1763970649091,-737.98149026,0.00040377,8]
[394806970,1763970649100,-451.55390974,0.00040377,8]
[394806971,1763970649112,-48.44609026,0.00040377,8]
[394806972,1763970649122,-667.79,0.00040377,8]
[394806973,1763970649133,-255.66208878,0.00040377,2]
[394806974,1763970649144,-244.33791122,0.00040377,2]
[394806975,1763970649153,-500.0,0.00040377,8]
[394806976,1763970649162,-969.1,0.00040377,8]
[394806977,1763970649172,-561.68,0.00040377,8]
[394806978,1763970649183,-284.21367636,0.00040377,8]
[394806979,1763970649200,-215.78632364,0.00040377,8]
[394806980,1763970649210,-500.0,0.00040377,8]
[394806981,1763970649219,-500.0,0.00040419,120]
[394806982,1763970649229,-150.0,0.0004042,7]
[394806983,1763970649239,-397.03087765,0.00040521,2]
[394806984,1763970649248,-473.3800582,0.00040541,28]
[394806985,1763970649258,-150.0,0.00040547,7]
[394806986,1763970649267,-150.0,0.00040547,7]
[394806987,1763970649276,-150.0,0.00040547,7]
[394806988,1763970649285,-1413.80274051,0.00040551,15]
[394806997,1763971411427,198.9914377,1.11e-06,2]
[394807022,1763971832045,-159.7,0.00019091,2]
[394807023,1763971832055,-500.0,0.00019091,2]
[394807024,1763971832065,-500.0,0.00019091,2]
[394807025,1763971832076,-250.0,0.00020046,2]
[394807026,1763971832086,-1200.0,0.00020999,2]
[394807027,1763971832096,-5070.91498242,0.00021,3]
[394807028,1763971832105,-250.0,0.00021,2]
[394807029,1763971832115,-300.0,0.0002816,2]
[394807030,1763971832125,-960.0,0.00028161,2]
[394807031,1763971832135,-159.7,0.00028637,2]
[394807032,1763971832145,-185.78,0.0003257,2]
[394807033,1763971832154,-2407.49,0.00034135,2]
[394807034,1763971832164,-150.99,0.00034135,2]
[394807035,1763971832175,-151.91,0.00034136,2]
[394807036,1763971832186,-151.91,0.00035086,2]
[394807037,1763971832196,-305.307,0.00035427,2]
[394807038,1763971832205,-2162.99,0.00036012,2]
[394807039,1763971832218,-4670.17,0.00036029,120]
[394807040,1763971832227,-150.0,0.00036029,2]
[394807041,1763971832237,-150.0,0.00036029,120]
[394807042,1763971832246,-4670.17,0.00036057,120]
[394807043,1763971832256,-4670.17,0.00036087,120]
[394807044,1763971832266,-4670.17,0.00036118,120]
[394807046,1763971832276,-166.66,0.00036147,30]
[394807048,1763971832285,-4670.17,0.0003615,120]
[394807050,1763971832295,-4670.17,0.00036184,120]
[394807052,1763971832304,-4670.17,0.00036221,120]
[394807053,1763971832313,-4670.17,0.0003626,120]
[394807054,1763971832322,-176.1082466,0.00036301,120]
[394807056,1763971832334,-619.47276016,0.00036301,120]
[394807059,1763971832345,-422.78329466,0.00036301,120]
[394807061,1763971832361,-3451.80569858,0.00036301,120]
[394807063,1763971832371,-4670.17,0.00036346,120]
[394807065,1763971832380,-4670.17,0.00036394,120]
[394807067,1763971832389,-4670.17,0.00036446,120]
[394807069,1763971832399,-4670.17,0.00036503,120]
[394807070,1763971832411,-4670.17,0.00036567,120]
[394807071,1763971832430,-200.0,0.00036625,2]
[394807072,1763971832440,-4670.17,0.00036638,120]
[394807074,1763971832450,-300.0,0.00036694,2]
[394807076,1763971832459,-1359.08103835,0.00036704,2]
[394807078,1763971832469,-2019.0,0.00036707,2]
[394807080,1763971832478,-4670.17,0.00036718,120]
[394807082,1763971832488,-810.0,0.00036793,2]
[394807084,1763971832498,-295.86253641,0.00036794,2]
[394807086,1763971832511,-2158.35838339,0.00036794,11]
[394807087,1763971832524,-5078.9513545,0.00036794,2]
[394807088,1763971832537,-32816.7904493,0.00036794,4]
[394807091,1763971832548,-10769.1945606,0.00036794,4]
[394807093,1763971832559,-501.06351093,0.00036803,8]
[394807095,1763971832568,-500.0,0.00036803,8]
[394807097,1763971832578,-519.94406956,0.00036803,8]
[394807099,1763971832587,-500.0,0.00036803,8]
[394807101,1763971832598,-500.0,0.00036803,8]
[394807103,1763971832609,-500.0,0.00036803,8]
[394807104,1763971832624,-538.54,0.00036803,2]
[394807105,1763971832635,-582.36393356,0.00036803,8]
[394807106,1763971832645,-500.0,0.00036803,8]
[394807107,1763971832656,-500.0,0.00036803,8]
[394807108,1763971832668,-500.0,0.00036803,8]
[394807109,1763971832679,-500.0,0.00036803,15]
[394807110,1763971832691,-500.0,0.00036803,15]
[394807111,1763971832702,-500.0,0.00036803,15]
[394807112,1763971832714,-500.0,0.00036803,15]
[394807113,1763971832725,-500.0,0.00036803,15]
[394807114,1763971832735,-500.0,0.00036803,15]
[394807115,1763971832746,-500.0,0.00036803,15]
[394807116,1763971832757,-500.0,0.00036803,15]
[394807117,1763971832767,-500.0,0.00036803,15]
[394807118,1763971832777,-500.0,0.00036803,15]
[394807119,1763971832787,-500.0,0.00036803,15]
[394807120,1763971832798,-500.0,0.00036803,15]
[394807121,1763971832811,-500.0,0.00036803,15]
[394807122,1763971832822,-500.0,0.00036803,15]
[394807123,1763971832832,-500.0,0.00036803,15]
[394807124,1763971832843,-500.0,0.00036803,15]
[394807125,1763971832853,-500.0,0.00036803,15]
[394807126,1763971832864,-500.0,0.00036803,15]
[394807127,1763971832875,-500.0,0.00036803,15]
[394807128,1763971832886,-500.0,0.00036803,15]
[394807129,1763971832898,-500.0,0.00036803,15]
[394807130,1763971832908,-500.0,0.00036803,15]
[394807131,1763971832919,-500.0,0.00036803,15]
[394807132,1763971832931,-500.0,0.00036803,15]
[394807133,1763971832942,-500.0,0.00036803,15]
[394807134,1763971832953,-484.23854961,0.00036803,15]
[394807135,1763971832967,-15.76145039,0.00036803,15]
[394807136,1763971832982,-500.0,0.00036803,15]
[394807137,1763971832993,-500.0,0.00036803,15]
[394807138,1763971833003,-500.0,0.00036803,15]
[394807139,1763971833014,-500.0,0.00036803,15]
[394807140,1763971833025,-500.0,0.00036803,15]
[394807141,1763971833036,-500.0,0.00036803,15]
[394807142,1763971833047,-500.0,0.00036803,15]
[394807143,1763971833057,-500.0,0.00036803,15]
[394807144,1763971833068,-500.0,0.00036803,15]
[394807145,1763971833080,-500.0,0.00036803,15]
[394807146,1763971833090,-500.0,0.00036803,15]
[394807147,1763971833101,-500.0,0.00036803,15]
[394807148,1763971833112,-500.0,0.00036803,15]
[394807149,1763971833123,-500.0,0.00036803,15]
[394807150,1763971833133,-500.0,0.00036803,15]
[394807151,1763971833143,-500.0,0.00036803,15]
[394807152,1763971833154,-616.31274827,0.00036803,15]
[394807153,1763971833165,-500.0,0.00036803,15]
[394807154,1763971833175,-500.0,0.00036803,15]
[394807155,1763971833185,-500.0,0.00036803,15]
[394807156,1763971833195,-500.0,0.00036803,15]
[394807157,1763971833207,-500.0,0.00036803,15]
[394807158,1763971833217,-500.0,0.00036803,15]
[394807159,1763971833228,-500.0,0.00036803,15]
[394807160,1763971833239,-500.0,0.00036803,15]
[394807161,1763971833250,-500.0,0.00036803,15]
[394807162,1763971833261,-619.30534181,0.00036803,15]
[394807163,1763971833272,-500.0,0.00036803,15]
[394807164,1763971833282,-630.03914993,0.00036803,15]
[394807165,1763971833292,-183.02053666,0.00036803,7]
[394807166,1763971833302,-204.56195903,0.00036803,7]
[394807167,1763971833316,-421.06398491,0.00036803,2]
[394807168,1763971833328,-197.95867,0.00036803,15]
[394807169,1763971833339,-500.0,0.00036803,15]
[394807170,1763971833349,-508.9874879,0.00036803,15]
[394807171,1763971833360,-500.0,0.00036803,15]
[394807172,1763971833372,-500.0,0.00036803,15]
[394807173,1763971833382,-328.50970436,0.00036803,15]
[394807174,1763971833393,-607.83210662,0.00036803,15]
[394807175,1763971833403,-500.0,0.00036803,15]
[394807176,1763971833413,-500.0,0.00036803,15]
[394807177,1763971833425,-8704.62087141,0.00036804,2]
[394807178,1763971838040,-302.69033,0.00036803,8]
[394807179,1763971838053,-197.30967,0.00036803,8]
[394807180,1763971838064,-500.0,0.00036803,8]
[394807181,1763971838075,-1567.66756594,0.00036804,2]
[394807182,1763971838085,-760000.0,0.00036804,2]
[394807183,1763971838095,-4670.17,0.00036811,120]
[394807184,1763971838109,-8076.89592048,0.00036894,4]
[394807185,1763971838121,-136635.37,0.00036904,2]
[394807186,1763971838131,-186.28441104,0.00036904,2]
[394807187,1763971838142,-166.66,0.00036908,30]
[394807188,1763971838153,-4670.17,0.0003692,120]
[394807189,1763971838165,-500.0,0.00036973,2]
[394807190,1763971838177,-500.0,0.00036973,5]
[394807191,1763971838188,-500.0,0.00036973,5]
[394807192,1763971838201,-500.0,0.00036973,5]
[394807193,1763971838213,-294.3607141,0.00036973,5]
[394807194,1763971838226,-500.0,0.00036973,5]
[394807195,1763971838239,-500.0,0.00036973,3]
[394807196,1763971838251,-500.0,0.00036973,5]
[394807197,1763971838263,-232.57906434,0.00036973,5]
[394807198,1763971838275,-500.0,0.00036973,5]
[394807199,1763971838286,-500.0,0.00036973,5]
[394807200,1763971838298,-500.0,0.00036973,5]
[394807201,1763971838309,-436.7307588,0.00036973,5]
[394807202,1763971838321,-500.0,0.00036973,2]
[394807203,1763971838333,-151.91,0.00036986,2]
[394807204,1763971838344,-151.91,0.00036986,2]
[394807205,1763971838356,-371.26,0.00036986,30]
[394807206,1763971838368,-170.84,0.00037,30]
[394807207,1763971838379,-4670.17,0.00037055,120]
[394807208,1763971838390,-500.0,0.00037077,8]
[394807209,1763971838401,-500.0,0.00037077,8]
[394807210,1763971838412,-500.0,0.00037077,8]
[394807211,1763971838424,-538.54,0.00037077,2]
[394807212,1763971838435,-387.36440118,0.00037077,8]
[394807213,1763971838447,-506.28909855,0.00037187,2]
[394807214,1763971838458,-3508.28,0.00037188,2]
[394807215,1763971838470,-1500.0,0.00037188,120]
[394807216,1763971838482,-4670.17,0.00037228,120]
[394807217,1763971838493,-579.28123361,0.00037351,8]
[394807218,1763971838505,-538.54,0.00037351,2]
[394807219,1763971838516,-5078.95135441,0.00037358,2]
[394807220,1763971838528,-10272.28843735,0.00037367,2]
[394807221,1763971838539,-1346.14932008,0.00037511,4]
[394807222,1763971838550,-295.86253637,0.00037519,2]
[394807223,1763971838561,-616.71130263,0.00037521,2]
[394807224,1763971838571,-1000.0,0.00037521,5]
[394807225,1763971838583,-642.97345703,0.00037521,5]
[394807226,1763971838593,-510.83585397,0.00037521,5]
[394807227,1763971838604,-1000.0,0.00037521,5]
[394807228,1763971838616,-500.0,0.00037521,3]
[394807229,1763971838635,-500.76130664,0.00037521,5]
[394807230,1763971838647,-1000.0,0.00037521,5]
[394807231,1763971838658,-1000.0,0.00037521,5]
[394807232,1763971838669,-1000.0,0.00037521,5]
[394807233,1763971838680,-1000.0,0.00037521,2]
[394807234,1763971838691,-170.67,0.000376,14]
[394807235,1763971838702,-538.54,0.00037625,2]
[394807236,1763971838719,-1346.14932008,0.00037659,4]
[394807237,1763971838731,-166.66,0.00037669,30]
[394807238,1763971838742,-902.055,0.00037669,49]
[394807239,1763971838754,-28234.61,0.00037669,2]
[394807240,1763971838764,-161.22,0.00037723,30]
[394807241,1763971838775,-150.0,0.00037751,7]
[394807242,1763971838787,-150.0,0.00037751,7]
[394807243,1763971838798,-150.0,0.00037751,7]
[394807244,1763971838809,-150.0,0.00037751,7]
[394807245,1763971838819,-150.0,0.00037751,7]
[394807246,1763971838830,-150.0,0.00037751,7]
[394807247,1763971838840,-150.0,0.00037751,7]
[394807248,1763971838851,-150.0,0.00037751,7]
[394807249,1763971838862,-150.0,0.00037751,7]
[394807250,1763971838873,-150.0,0.00037751,7]
[394807251,1763971838885,-150.0,0.00037788,2]
[394807252,1763971838896,-2158.35838339,0.00037851,12]
[394807253,1763971838906,-538.54,0.00037899,2]
[394807254,1763971838917,-5078.95135441,0.00037922,2]
[394807255,1763971838928,-10272.28843735,0.0003793,2]
[394807256,1763971838939,-999.0,0.0003794,3]
[394807257,1763971838950,-300.0,0.00038064,2]